bitfinex-derivatives/quotes_BTCF0:USTF0_20251118
["timestamp","ask_amount","ask_price","bid_price","bid_amount"]
[1763483621608,0.00016,93801.0,93800.0,0.43361803]
[1763483622110,0.07153,93801.0,93800.0,0.39926803]
[1763483622301,0.07153,93801.0,93800.0,0.00219803]
[1763483622710,0.1067052,93785.0,93783.0,0.00016]
[1763483623014,0.03745,93784.0,93783.0,0.00016]
[1763483623405,0.1067008,93789.0,93783.0,0.07078]
[1763483623709,0.03745,93784.0,93783.0,0.07078]
[1763483623910,0.1066951,93794.0,93786.0,0.1067023]
[1763483624104,0.00016,93801.0,93800.0,0.07062]
[1763483624306,0.00016,93801.0,93800.0,0.43361803]
[1763483624509,0.07153,93801.0,93800.0,0.36299803]
[1763483624906,0.07153,93801.0,93800.0,0.00219803]
[1763483625311,0.03761,93801.0,93800.0,0.03846803]
[1763483625614,0.00016,93801.0,93800.0,0.07281803]
[1763483626211,0.00026651,93806.0,93805.0,0.07062]
[1763483626413,0.07137,93802.0,93801.0,0.3608]
[1763483627612,0.00026651,93806.0,93805.0,0.07062]
[1763483628317,0.00015973,93811.0,93810.0,0.07062]
[1763483628509,0.00015973,93811.0,93810.0,0.54029403]
[1763483628909,0.25944,93826.0,93822.0,0.1066623]
[1763483629215,0.03745,93824.0,93823.0,0.3608]
[1763483629419,0.25944,93827.0,93826.0,0.03627]
[1763483629712,0.25944,93827.0,93823.0,0.3608]
[1763483629713,0.07137,93831.0,93830.0,0.00219803]
[1763483631308,0.07137,93831.0,93830.0,0.03846803]
[1763483631504,0.07137,93831.0,93830.0,0.00219803]
[1763483632313,0.02115,93840.0,93830.0,0.17947123]
[1763483632513,0.07137,93846.0,93845.0,0.1066361]
[1763483632718,0.07137,93846.0,93845.0,0.4674361]
[1763483633024,0.07137,93846.0,93845.0,0.3608]
[1763483633812,0.07437,93846.0,93845.0,0.3608]
[1763483634012,0.07437,93846.0,93836.0,0.00015991]
[1763483634013,0.07137,93837.0,93836.0,0.00015991]
[1763483634223,0.07137,93818.0,93817.0,0.3608]
[1763483635821,0.07137,93821.0,93820.0,0.00219803]
[1763483636225,0.07137,93821.0,93820.0,0.03846803]
[1763483637123,0.07237,93821.0,93820.0,0.03846803]
[1763483637514,0.07237,93821.0,93820.0,0.00219803]
[1763483637714,0.07237,93821.0,93820.0,0.03663803]
[1763483637919,0.001,93821.0,93820.0,0.06761803]
[1763483638508,0.00015991,93827.0,93826.0,0.1720778]
[1763483638708,0.00015991,93827.0,93826.0,0.5328778]
[1763483640016,0.08936,93842.0,93841.0,0.1066407]
[1763483640211,0.34872,93842.0,93841.0,0.4674407]
[1763483640419,0.34872,93842.0,93841.0,0.5018807]
[1763483641014,0.34872,93842.0,93841.0,0.5328607]
[1763483641015,0.25936,93842.0,93841.0,0.5328607]
[1763483641214,0.32757,93842.0,93841.0,0.5328607]
[1763483641522,0.34643,93842.0,93841.0,0.3608]
[1763483641719,0.25936,93842.0,93841.0,0.42622]
[1763483641913,0.003,93842.0,93841.0,0.42622]
[1763483642118,0.07121,93842.0,93841.0,0.03444]
[1763483642318,0.1748507,93841.0,93840.0,0.00219803]
[1763483642525,0.06821,93841.0,93840.0,0.06761803]
[1763483642724,0.06821,93841.0,93840.0,0.00219803]
[1763483642925,0.1748507,93841.0,93840.0,0.00219803]
[1763483643122,0.06821,93841.0,93840.0,0.00219803]
[1763483643323,0.003,93842.0,93838.0,0.3608]
[1763483643324,0.06821,93839.0,93838.0,0.3608]
[1763483643623,0.03536,93842.0,93841.0,0.1720607]
[1763483643824,0.06821,93842.0,93841.0,0.1720607]
[1763483644122,0.06821,93842.0,93840.0,0.00219803]
[1763483644123,0.06821,93841.0,93840.0,0.00219803]
[1763483644826,0.03436,93841.0,93840.0,0.06761803]
[1763483645122,0.002,93842.0,93840.0,0.03317803]
[1763483645315,0.002,93842.0,93841.0,0.06542]
[1763483645726,0.03436,93842.0,93841.0,0.06542]
[1763483646023,0.3608,93872.0,93840.0,0.00219803]
[1763483646324,0.06821,93858.0,93857.0,0.1066216]
[1763483646521,0.06821,93855.0,93854.0,0.5328458]
[1763483646819,0.06821,93855.0,93854.0,0.42622]
[1763483647021,0.03436,93855.0,93854.0,0.42622]
[1763483647216,0.06821,93855.0,93854.0,0.42622]
[1763483647616,0.06821,93855.0,93854.0,0.39524]
[1763483648322,0.1748394,93851.0,93850.0,0.00219803]
[1763483648823,0.1748394,93851.0,93838.0,0.3608]
[1763483648824,0.06821,93839.0,93838.0,0.3608]
[1763483649024,0.174853,93839.0,93838.0,0.3608]
[1763483649219,0.1748621,93831.0,93830.0,0.00219803]
[1763483649720,0.1748837,93812.0,93811.0,0.3608]
[1763483649922,0.1066669,93818.0,93802.0,0.00015982]
[1763483649923,0.06821,93803.0,93802.0,0.00015982]
[1763483652029,0.06821,93803.0,93788.0,0.3608]
[1763483652030,0.1749053,93793.0,93788.0,0.3608]
[1763483652324,0.1749053,93793.0,93766.0,0.00026662]
[1763483652325,0.01886,93786.0,93768.0,0.3608]
[1763483652522,0.06821,93771.0,93770.0,0.00219803]
[1763483652720,0.01886,93772.0,93766.0,0.00026662]
[1763483652721,0.06821,93767.0,93766.0,0.00026662]
[1763483653030,0.25928,93772.0,93771.0,0.03444]
[1763483653329,0.06821,93771.0,93770.0,0.00219803]
[1763483653729,0.06821,93771.0,93770.0,0.36399803]
[1763483653920,9.451e-05,93772.0,93771.0,0.1721404]
[1763483654426,9.451e-05,93772.0,93771.0,0.06542]
[1763483655417,9.451e-05,93772.0,93771.0,0.06642]
[1763483656825,0.00015991,93776.0,93775.0,0.06542]
[1763483657234,0.1066986,93791.0,93773.0,0.1067175]
[1763483657421,0.06821,93781.0,93780.0,0.00219803]
[1763483657831,0.06825359,93781.0,93780.0,0.00219803]
[1763483658625,4.359e-05,93781.0,93780.0,0.06761803]
[1763483658825,0.06825359,93781.0,93780.0,0.00219803]
[1763483659025,0.06825359,93781.0,93780.0,0.03663803]
[1763483659227,4.359e-05,93781.0,93780.0,0.06761803]
[1763483660036,0.06825359,93781.0,93780.0,0.00319803]
[1763483660924,4.359e-05,93781.0,93780.0,0.42410803]
[1763483661128,0.0001597,93790.0,93789.0,0.1668099]
[1763483661328,0.03015,93812.0,93811.0,0.1066749]
[1763483661528,0.25936,93821.0,93811.0,0.3608]
[1763483661730,0.06004,93812.0,93811.0,0.3608]
[1763483662123,0.25936,93821.0,93812.0,0.1066737]
[1763483662326,0.06004,93812.0,93811.0,0.3608]
[1763483662631,0.25936,93821.0,93818.0,0.1066662]
[1763483662826,0.4674551,93829.0,93821.0,0.1066635]
[1763483662827,0.3608,93829.0,93821.0,0.1066635]
[1763483663032,0.1066502,93833.0,93821.0,0.1066635]
[1763483663228,0.1066522,93831.0,93821.0,0.1066635]
[1763483663429,0.1666922,93831.0,93830.0,0.00219803]
[1763483664232,0.1666922,93831.0,93820.0,0.3608]
[1763483664233,0.06004,93821.0,93820.0,0.3608]
[1763483664440,0.06004,93821.0,93820.0,0.36299803]
[1763483664930,0.3660114,93832.0,93820.0,0.36299803]
[1763483665239,0.1666944,93829.0,93828.0,0.3608]
[1763483665632,0.1667035,93821.0,93820.0,0.3608]
[1763483665934,0.1066651,93820.0,93808.0,0.3608]
[1763483666126,0.25932,93819.0,93810.0,0.00219803]
[1763483666438,0.06004,93817.0,93816.0,0.3608]
[1763483666932,0.01834,93825.0,93820.0,0.00219803]
[1763483667139,0.17772844,93840.0,93824.0,0.42034]
[1763483667339,0.05814,93831.0,93830.0,0.00219803]
[1763483667528,0.31746,93831.0,93830.0,0.00219803]
[1763483667729,0.17772844,93850.0,93830.0,0.00219803]
[1763483667934,0.3608,93854.0,93833.0,0.3608]
[1763483668237,0.25932,93841.0,93840.0,0.05894]
[1763483668438,0.31746,93841.0,93840.0,0.00219803]
[1763483669429,0.31946,93841.0,93840.0,0.00219803]
[1763483670533,0.31946,93841.0,93840.0,0.03301803]
[1763483670534,0.03055,93841.0,93840.0,0.03301803]
[1763483670734,0.3608,93873.0,93840.0,0.01713803]
[1763483670939,0.1066212,93859.0,93851.0,0.1066293]
[1763483671140,0.25928,93858.0,93851.0,0.1066293]
[1763483671335,0.28783,93858.0,93857.0,0.41974]
[1763483671535,0.31742,93858.0,93857.0,0.39162]
[1763483671944,0.05814,93858.0,93857.0,0.3608]
[1763483673036,0.1647739,93847.0,93846.0,0.00015982]
[1763483673331,0.1648046,93820.0,93819.0,0.3608]
[1763483673642,0.25928,93831.0,93820.0,0.00219803]
[1763483673832,0.1648035,93821.0,93820.0,0.00219803]
[1763483674540,0.05814,93821.0,93820.0,0.00219803]
[1763483674837,0.25924,93827.0,93820.0,0.06113803]
[1763483675045,0.02870953,93830.0,93829.0,0.1374744]
[1763483675233,0.00015953,93830.0,93829.0,0.41974]
[1763483676335,0.02870953,93830.0,93829.0,0.41974]
[1763483679440,0.00015953,93830.0,93829.0,0.41974]
[1763483679643,0.05829953,93830.0,93829.0,0.39162]
[1763483679941,0.05829953,93830.0,93829.0,0.3608]
[1763483680340,0.02855,93821.0,93820.0,0.3608]
[1763483680644,0.05814,93821.0,93820.0,0.36299803]
[1763483681056,0.1066613,93823.0,93811.0,0.00015982]
[1763483681057,0.05814,93812.0,93811.0,0.00015982]
[1763483682644,0.05814,93812.0,93811.0,0.05909982]
[1763483682840,0.05814,93812.0,93811.0,0.00015982]
[1763483683541,0.1648137,93812.0,93811.0,0.00015982]
[1763483684742,0.1648137,93812.0,93811.0,0.00015982]
[1763483684938,0.1648137,93812.0,93792.0,0.3608]
[1763483684939,0.05814,93793.0,93792.0,0.3608]
[1763483685441,0.05814,93793.0,93792.0,0.39162]
[1763483685741,0.05814,93793.0,93792.0,0.3608]
[1763483685943,0.05814,93793.0,93790.0,0.00219803]
[1763483685944,0.05814,93791.0,93790.0,0.00219803]
[1763483686136,0.05814,93785.0,93784.0,0.00012961]
[1763483686336,0.4240844,93785.0,93784.0,0.00012961]
[1763483687136,0.31738,93785.0,93784.0,0.00012961]
[1763483687944,0.31738,93785.0,93784.0,0.00112961]
[1763483689138,0.05814,93767.0,93761.0,0.3608]
[1763483689340,0.05814,93767.0,93766.0,0.10699272]
[1763483689647,0.02855,93767.0,93766.0,0.16593272]
[1763483689844,0.07526,93782.0,93781.0,0.03082]
[1763483690046,0.164849,93781.0,93780.0,0.00219803]
[1763483690245,0.05814,93772.0,93771.0,0.00015991]
[1763483691047,0.05714,93772.0,93771.0,0.00015991]
[1763483691339,0.05714,93772.0,93771.0,0.03097991]
[1763483691552,0.02755,93772.0,93771.0,0.05909991]
[1763483691745,0.05714,93772.0,93771.0,0.05909991]
[1763483691942,0.05714,93772.0,93771.0,0.00015991]
[1763483693445,0.05714,93772.0,93771.0,0.00115991]
[1763483695643,0.05714,93772.0,93766.0,0.00026662]
[1763483695644,0.1648649,93767.0,93766.0,0.00026662]
[1763483695947,0.1648786,93755.0,93747.0,0.1067475]
[1763483696252,0.1648786,93755.0,93745.0,0.3608]
[1763483696552,0.02959,93744.0,93743.0,0.41974]
[1763483696846,0.05714,93735.0,93734.0,0.36096]
[1763483697048,0.0572435,93735.0,93734.0,0.36096]
[1763483698046,0.0001035,93735.0,93734.0,0.05699]
[1763483698351,0.0523935,93735.0,93734.0,0.05699]
[1763483698653,0.0523935,93735.0,93734.0,0.00016]
[1763483700551,0.05429,93747.0,93734.0,0.36096]
[1763483700852,0.05429,93741.0,93740.0,0.00219803]
[1763483701160,0.05429,93735.0,93723.0,0.3608]
[1763483701347,0.62012,93741.0,93714.0,0.3608]
[1763483701348,0.01603,93717.0,93714.0,0.3608]
[1763483701544,0.01603,93717.0,93706.0,0.3608]
[1763483701545,0.02646,93707.0,93706.0,0.3608]
[1763483701850,0.02646,93707.0,93678.0,0.01902173]
[1763483701851,0.07032,93691.0,93690.0,0.3608]
[1763483702246,0.05429,93682.0,93681.0,0.00016009]
[1763483702445,0.31365,93682.0,93681.0,0.00016009]
[1763483702656,0.3608,93698.0,93681.0,0.00016009]
[1763483702657,0.02783,93697.0,93681.0,0.00016009]
[1763483702864,0.00012871,93696.0,93690.0,0.36299803]
[1763483703152,0.05429,93691.0,93690.0,0.39353803]
[1763483703360,0.00012871,93696.0,93695.0,0.1636372]
[1763483704654,1.5,93707.0,93699.0,0.1636327]
[1763483704855,0.3608,93738.0,93712.0,0.1067867]
[1763483704856,0.37683,93730.0,93712.0,0.1067867]
[1763483705054,0.05429,93711.0,93710.0,0.00219803]
[1763483705356,1.51603,93716.0,93710.0,0.00219803]
[1763483705658,1.51603,93716.0,93715.0,0.1636144]
[1763483705858,0.07032,93716.0,93715.0,0.03054]
[1763483706060,0.05429,93709.0,93708.0,0.3608]
[1763483706258,0.05429,93707.0,93706.0,0.00016009]
[1763483706448,0.05429,93700.0,93699.0,0.001]
[1763483706652,0.05429,93687.0,93686.0,0.3608]
[1763483706857,0.05429,93679.0,93678.0,0.3608]
[1763483707051,0.2594,93687.0,93680.0,0.00219803]
[1763483707251,0.31369,93687.0,93680.0,0.00219803]
[1763483707454,0.05429,93681.0,93680.0,0.00219803]
[1763483707659,0.02783,93681.0,93680.0,0.05902803]
[1763483707856,0.05429,93681.0,93680.0,0.00219803]
[1763483708058,0.05429,93679.0,93678.0,0.3608]
[1763483708451,0.05429,93675.0,93674.0,0.00016009]
[1763483708647,0.31373,93675.0,93674.0,0.00016009]
[1763483708857,0.31373,93675.0,93664.0,0.3608]
[1763483708858,0.05429,93665.0,93664.0,0.3608]
[1763483709153,0.05429,93665.0,93664.0,0.25736756]
[1763483709356,0.05429,93656.0,93655.0,0.3608]
[1763483709554,0.31373,93656.0,93646.0,0.00026696]
[1763483709753,0.25944,93656.0,93650.0,0.05902803]
[1763483709949,0.02783,93651.0,93650.0,0.00219803]
[1763483710155,0.25944,93656.0,93650.0,0.05902803]
[1763483710353,0.25944,93656.0,93650.0,0.00219803]
[1763483710556,0.25944,93656.0,93655.0,0.05683]
[1763483710858,0.05429,93647.0,93646.0,0.00026696]
[1763483711157,0.67457,93647.0,93646.0,0.00026696]
[1763483711358,0.53852844,93656.0,93651.0,0.1068571]
[1763483711564,0.25948,93655.0,93654.0,0.02629]
[1763483711863,0.05429,93651.0,93650.0,0.00219803]
[1763483712060,0.05429,93647.0,93646.0,0.00026696]
[1763483712252,0.1068554,93653.0,93646.0,0.00026696]
[1763483712253,0.25948,93655.0,93650.0,0.00219803]
[1763483712452,0.25952,93654.0,93650.0,0.00219803]
[1763483712654,0.3608,93674.0,93658.0,0.05683]
[1763483712855,0.25952,93671.0,93661.0,0.41763]
[1763483713560,0.3608,93685.0,93670.0,0.05683]
[1763483713750,0.3608,93685.0,93684.0,0.1636498]
[1763483713959,0.64815,93685.0,93681.0,0.1068232]
[1763483714159,0.25952,93685.0,93684.0,0.41763]
[1763483714353,0.3608,93703.0,93699.0,0.1068017]
[1763483714554,0.25952,93702.0,93701.0,0.03054]
[1763483714862,0.00016008,93710.0,93694.0,0.3608]
[1763483714863,0.25952,93708.0,93702.0,0.1067992]
[1763483715063,0.25952,93708.0,93706.0,0.3608]
[1763483715265,0.25952,93708.0,93706.0,0.41763]
[1763483715463,0.25952,93708.0,93706.0,0.41096]
[1763483715761,0.25952,93708.0,93706.0,0.35413]
[1763483715966,0.05429,93702.0,93701.0,0.1067998]
[1763483716263,0.05429,93702.0,93700.0,0.00219803]
[1763483716563,0.05429,93701.0,93700.0,0.00219803]
[1763483716862,0.001,93702.0,93701.0,0.05683]
[1763483717055,0.001,93702.0,93701.0,0.03054]
[1763483717256,0.02783,93702.0,93701.0,0.1068004]
[1763483717467,0.62052008,93710.0,93706.0,0.1636247]
[1763483717653,0.62052008,93710.0,93709.0,0.05683]
[1763483717859,0.00016008,93710.0,93709.0,0.05683]
[1763483718163,1.50016008,93710.0,93709.0,0.05683]
[1763483718372,0.00016008,93710.0,93709.0,0.05683]
[1763483718560,0.25956,93715.0,93714.0,0.1636156]
[1763483718758,0.25956,93715.0,93714.0,0.5244156]
[1763483719360,0.02783,93737.0,93736.0,0.1067598]
[1763483719657,0.25952,93737.0,93736.0,0.1635898]
[1763483719858,0.25952,93737.0,93736.0,0.05683]
[1763483720255,1.5,93738.0,93737.0,0.1573694]
[1763483720462,0.00016008,93746.0,93745.0,0.1573603]
[1763483720656,0.00016008,93746.0,93745.0,0.41141]
[1763483720857,0.05199,93744.0,93743.0,0.1067519]
[1763483721462,1.50016008,93746.0,93745.0,0.05061]
[1763483721862,1.50016008,93746.0,93743.0,0.4675521]
[1763483722161,0.05199,93744.0,93743.0,0.3608]
[1763483722954,1.75968008,93746.0,93743.0,0.4675514]
[1763483723155,0.05199,93744.0,93743.0,0.3618]
[1763483723360,0.05199,93744.0,93743.0,0.001]
[1763483723866,0.05099,93728.0,93725.0,0.3608]
[1763483724063,0.05099,93728.0,93718.0,0.106781]
[1763483724367,0.05099,93728.0,93712.0,0.3608]
[1763483724763,0.02443,93728.0,93712.0,0.37621]
[1763483724960,0.05199,93728.0,93712.0,0.37621]
[1763483725161,0.05199,93728.0,93727.0,0.10693088]
[1763483725469,0.31147,93733.0,93732.0,0.1067651]
[1763483725764,0.25948,93733.0,93732.0,0.05061]
[1763483726077,0.28491,93733.0,93730.0,0.00219803]
[1763483726275,0.25948,93733.0,93732.0,0.02596]
[1763483726569,0.02543,93731.0,93730.0,0.00219803]
[1763483726770,0.25948,93733.0,93732.0,0.05161]
[1763483727066,0.3608,93739.0,93738.0,0.1327182]
[1763483727366,0.3608,93739.0,93738.0,0.1567482]
[1763483728069,0.02474,93733.0,93732.0,0.001]
[1763483728369,0.05122,93733.0,93732.0,0.001]
[1763483728770,0.05122,93728.0,93725.0,0.3608]
[1763483728970,0.25948,93734.0,93733.0,0.05009]
[1763483729160,0.05122,93731.0,93730.0,0.10896533]
[1763483729365,0.25948,93734.0,93733.0,0.1568539]
[1763483730275,0.02474,93731.0,93730.0,0.10896533]
[1763483730666,0.25948,93734.0,93733.0,0.1568539]
[1763483732464,0.05122,93731.0,93730.0,0.00319803]
[1763483733375,0.28422,93734.0,93733.0,0.001]
[1763483733677,0.3107,93734.0,93733.0,0.001]
[1763483733873,0.02474,93731.0,93730.0,0.10896533]
[1763483734177,0.05122,93731.0,93730.0,0.10996533]
[1763483734379,0.05122,93731.0,93730.0,0.00319803]
[1763483735169,0.3608,93739.0,93738.0,0.1568482]
[1763483735375,0.32079,93739.0,93738.0,0.1568482]
[1763483735570,0.00016008,93746.0,93738.0,0.1568482]
[1763483735571,0.00016008,93746.0,93745.0,0.1568403]
[1763483735881,0.00801,93776.0,93770.0,0.1067218]
[1763483735882,1.5,93771.0,93770.0,0.1067218]
[1763483736179,1.75944,93771.0,93770.0,0.10891983]
[1763483736371,0.25944,93771.0,93770.0,0.15900983]
[1763483736575,0.02474,93790.0,93776.0,0.106714]
[1763483736771,0.08550786,93802.0,93780.0,0.00219803]
[1763483736772,0.1067072,93783.0,93780.0,0.00219803]
[1763483736978,1.5,93782.0,93780.0,0.10890743]
[1763483737275,1.5,93782.0,93781.0,0.02606]
[1763483737479,0.24412,93791.0,93790.0,0.156789]
[1763483737670,0.29534,93791.0,93790.0,0.00219803]
[1763483738075,1.79534,93791.0,93790.0,0.00219803]
[1763483738379,1.74412,93791.0,93790.0,0.02825803]
[1763483738680,1.74412,93791.0,93790.0,0.00219803]
[1763483738882,0.05122,93785.0,93784.0,0.1067053]
[1763483739082,0.05122,93785.0,93780.0,0.10890803]
[1763483739280,0.05122,93785.0,93781.0,0.1067093]
[1763483739476,0.02474,93785.0,93781.0,0.1067093]
[1763483739677,0.02474,93782.0,93780.0,0.00219803]
[1763483739878,0.02474,93782.0,93743.0,0.640513]
[1763483739879,0.05122,93775.0,93741.0,0.03745056]
[1763483740075,0.25354877,93760.0,93740.0,0.00219803]
[1763483740280,0.02474,93741.0,93740.0,0.00219803]
[1763483740581,0.05122,93741.0,93740.0,0.00219803]
[1763483740881,0.1067484,93747.0,93740.0,0.00219803]
[1763483741094,0.1579851,93732.0,93731.0,0.00015999]
[1763483741274,0.05022,93732.0,93731.0,0.00015999]
[1763483741474,0.01473,93738.0,93731.0,0.00015999]
[1763483741677,0.25972,93748.0,93731.0,0.00015999]
[1763483741882,0.25972,93748.0,93740.0,0.00219803]
[1763483742076,0.1067528,93743.0,93740.0,0.00219803]
[1763483742280,0.05122,93741.0,93740.0,0.00219803]
[1763483742677,0.25972,93748.0,93740.0,0.00219803]
[1763483743077,0.25972,93748.0,93741.0,0.1067548]
[1763483743273,0.25972,93748.0,93740.0,0.00319803]
[1763483743477,0.1067517,93744.0,93740.0,0.00319803]
[1763483743678,0.05122,93741.0,93740.0,0.00219803]
[1763483745772,0.1067518,93744.0,93731.0,0.00015999]
[1763483745773,0.1579851,93732.0,93731.0,0.00015999]
[1763483746088,0.1569919,93726.0,93725.0,0.32079]
[1763483746284,0.1569919,93726.0,93725.0,0.21266652]
[1763483746475,0.1569919,93726.0,93710.0,8.129e-05]
[1763483746476,0.106789,93711.0,93710.0,8.129e-05]
[1763483746683,0.106807,93696.0,93691.0,0.05009]
[1763483746882,0.34560917,93710.0,93691.0,0.02606]
[1763483746883,0.1068099,93693.0,93691.0,0.02606]
[1763483747083,0.1068143,93689.0,93686.0,0.00026685]
[1763483747383,0.25968,93697.0,93687.0,0.01519]
[1763483747588,0.00011191,93696.0,93690.0,0.00219803]
[1763483747790,0.00011191,93696.0,93695.0,0.05009]
[1763483748088,0.21879191,93696.0,93690.0,0.00219803]
[1763483748391,0.1068151,93689.0,93686.0,0.00026685]
[1763483749084,0.21879191,93696.0,93686.0,0.00026685]
[1763483749085,0.1068087,93694.0,93686.0,0.00026685]
[1763483749289,0.23881877,93670.0,93649.0,0.03745056]
[1763483749494,0.25983191,93669.0,93668.0,0.02606]
[1763483749679,0.00011191,93669.0,93668.0,0.05009]
[1763483749881,0.13471191,93680.0,93670.0,0.01738803]
[1763483750082,0.1068301,93675.0,93670.0,0.01738803]
[1763483750281,0.13471191,93680.0,93670.0,0.01738803]
[1763483750787,0.1068255,93679.0,93670.0,0.01738803]
[1763483750977,0.13471191,93680.0,93670.0,0.01738803]
[1763483751382,0.1068336,93672.0,93670.0,0.01738803]
[1763483752983,0.1068426,93664.0,93663.0,0.00010727]
[1763483753583,0.3666426,93664.0,93663.0,0.00010727]
[1763483753978,0.106862,93647.0,93636.0,0.01519]
[1763483754288,0.1068487,93659.0,93653.0,0.01519]
[1763483754485,0.2598,93664.0,93653.0,0.01519]
[1763483755087,0.1068528,93656.0,93653.0,0.01519]
[1763483755694,0.106857,93652.0,93650.0,0.00219803]
[1763483756083,0.23881877,93660.0,93650.0,0.00219803]
[1763483756282,0.2598,93664.0,93650.0,0.00219803]
[1763483756686,0.1068547,93654.0,93650.0,0.00219803]
[1763483757090,0.03572,93651.0,93650.0,0.00219803]
[1763483757278,0.03572,93651.0,93650.0,0.00319803]
[1763483757484,0.2598,93664.0,93650.0,0.02953803]
[1763483757785,0.1067998,93702.0,93656.0,0.106851]
[1763483757786,0.1068376,93669.0,93656.0,0.106851]
[1763483757988,0.23881877,93680.0,93650.0,0.00319803]
[1763483757989,0.21648018,93668.0,93660.0,0.00219803]
[1763483758392,0.21648018,93668.0,93667.0,0.02634]
[1763483758686,0.21648018,93668.0,93667.0,0.06147]
[1763483758888,0.00016018,93668.0,93667.0,0.06147]
[1763483759391,0.17816,93688.0,93675.0,0.02043]
[1763483759599,0.01786,93720.0,93687.0,0.02634]
[1763483759600,0.3482854,93697.0,93687.0,0.02634]
[1763483759887,0.1068088,93694.0,93690.0,0.02262803]
[1763483760280,0.01786,93691.0,93690.0,0.00219803]
[1763483760687,0.03572,93691.0,93690.0,0.00219803]
[1763483761095,0.002,93697.0,93696.0,0.06147]
[1763483761295,0.00016009,93701.0,93700.0,0.06366803]
[1763483761591,0.00026674,93726.0,93705.0,0.02043]
[1763483761891,0.1428176,93721.0,93720.0,0.00219803]
[1763483762095,0.03604,93721.0,93720.0,0.00219803]
[1763483762387,0.1067811,93718.0,93690.0,0.02043]
[1763483762593,0.23881877,93710.0,93695.0,0.00016009]
[1763483762896,0.03604,93696.0,93695.0,0.00016009]
[1763483763585,0.03504,93696.0,93695.0,0.00016009]
[1763483764289,0.00016009,93713.0,93712.0,0.04677]
[1763483764486,0.00016009,93713.0,93696.0,0.02043]
[1763483764487,0.01718009,93713.0,93710.0,0.00219803]
[1763483764691,0.03404,93711.0,93710.0,0.00219803]
[1763483764879,0.00016009,93713.0,93712.0,0.04677]
[1763483765085,0.00016009,93713.0,93712.0,0.0819]
[1763483765285,0.03404,93711.0,93710.0,0.00219803]
[1763483765694,0.00016009,93713.0,93710.0,0.00219803]
[1763483765887,0.1067875,93712.0,93710.0,0.00219803]
[1763483766082,0.01702,93711.0,93710.0,0.00219803]
[1763483766282,0.03404,93696.0,93695.0,0.00016009]
[1763483766687,0.03304,93696.0,93695.0,0.00016009]
[1763483766883,0.1068354,93671.0,93641.0,0.00010182]
[1763483767088,0.1388782,93668.0,93660.0,0.00219803]
[1763483767295,0.23881877,93690.0,93667.0,0.06147]
[1763483767492,0.1068323,93673.0,93670.0,0.00219803]
[1763483767682,0.1068281,93677.0,93670.0,0.00219803]
[1763483767888,0.00016009,93683.0,93676.0,0.02634]
[1763483768083,0.01602,93681.0,93680.0,0.00219803]
[1763483768391,0.03204,93681.0,93680.0,0.00219803]
[1763483768584,0.1068382,93668.0,93664.0,0.02159009]
[1763483768987,0.23881877,93680.0,93664.0,0.00116009]
[1763483769190,0.1068311,93674.0,93670.0,0.00219803]
[1763483769392,0.106827,93678.0,93673.0,0.06147]
[1763483769694,0.25988,93679.0,93673.0,0.06147]
[1763483769898,0.3667051,93679.0,93678.0,0.02634]
[1763483770287,0.00016009,93683.0,93678.0,0.02634]
[1763483770288,0.00016009,93683.0,93680.0,0.00219803]
[1763483770488,0.00016009,93683.0,93682.0,0.06147]
[1763483771084,0.1068217,93682.0,93680.0,0.00219803]
[1763483771295,0.1068342,93671.0,93670.0,0.02262803]
[1763483771598,0.1068286,93676.0,93670.0,0.02262803]
[1763483771791,0.00016009,93683.0,93670.0,0.02262803]
[1763483771792,0.00016009,93683.0,93674.0,0.1068307]
[1763483771990,0.00016009,93683.0,93682.0,0.06147]
[1763483772197,0.1068217,93682.0,93680.0,0.00219803]
[1763483772495,0.106841,93666.0,93664.0,0.00016009]
[1763483772693,0.03204,93665.0,93664.0,0.00016009]
[1763483772890,0.106841,93666.0,93664.0,0.00016009]
[1763483773090,0.03204,93665.0,93664.0,0.00016009]
[1763483773392,0.1068355,93670.0,93664.0,0.00016009]
[1763483773617,0.00016009,93683.0,93682.0,0.1682917]
[1763483773896,0.1067893,93711.0,93696.0,0.1068052]
[1763483773897,0.1067946,93706.0,93696.0,0.1068052]
[1763483774092,0.1067907,93710.0,93701.0,0.1068]
[1763483774292,0.19588,93711.0,93704.0,0.02043]
[1763483774494,0.1067909,93709.0,93704.0,0.02043]
[1763483774794,0.1067898,93710.0,93708.0,0.02634]
[1763483775101,0.03204,93709.0,93700.0,0.00219803]
[1763483775285,0.1388434,93698.0,93697.0,0.00016009]
[1763483777595,0.00016009,93671.0,93670.0,0.0819]
[1763483777793,0.00016009,93671.0,93670.0,0.08409803]
[1763483778399,0.1068179,93686.0,93685.0,0.02634]
[1763483778701,0.1068179,93686.0,93680.0,0.00219803]
[1763483779096,0.1068342,93671.0,93670.0,0.02043]
[1763483779399,0.1068228,93682.0,93661.0,0.00016009]
[1763483779400,0.1068445,93662.0,93661.0,0.00016009]
[1763483779599,0.1230245,93662.0,93661.0,0.00016009]
[1763483779800,0.03236,93662.0,93661.0,0.00016009]
[1763483779988,0.01618,93662.0,93661.0,0.00016009]
[1763483780189,0.03236,93662.0,93661.0,0.00016009]
[1763483780390,0.1068412,93665.0,93661.0,0.00016009]
[1763483780391,0.23897886,93680.0,93661.0,0.00016009]
[1763483780588,0.1068285,93677.0,93670.0,0.02136803]
[1763483780800,0.00016009,93680.0,93670.0,0.02136803]
[1763483780801,0.1068308,93674.0,93673.0,0.03308]
[1763483781199,0.00016009,93680.0,93661.0,0.00016009]
[1763483781200,0.00834,93662.0,93661.0,0.00016009]
[1763483781401,0.1235245,93662.0,93661.0,0.00016009]
[1763483782400,0.01668,93662.0,93661.0,0.00016009]
[1763483783004,0.1235245,93662.0,93661.0,0.00016009]
[1763483783194,0.1232216,93647.0,93646.0,0.00026696]
[1763483783701,0.1232273,93642.0,93622.0,0.1068901]
[1763483783907,0.26,93661.0,93640.0,0.00219803]
[1763483784105,0.26,93660.0,93650.0,0.00219803]
[1763483784304,0.00818,93651.0,93650.0,0.00219803]
[1763483784504,0.26,93659.0,93650.0,0.00219803]
[1763483785106,0.1068527,93655.0,93650.0,0.00219803]
[1763483785303,0.1068561,93652.0,93650.0,0.00219803]
[1763483785803,0.00818,93651.0,93650.0,0.00219803]